Cogmind - Beta 10.1 @@@ ROGUE MODE // 2020.10.03 @ 10:38:22 Player: Jelly Result: Self-destructed Performance ------------- Evolutions (2) 1000 Regions Visited (5) 1000 Robots Destroyed (62) 310 Value Destroyed (1548) 1548 Prototype IDs (6) 120 Alien Tech Used (0) 0 Bonus (78) 78 TOTAL SCORE: 4056 Bonus ------- High Alert Combat Kills 4 Follower Combat Kills 74 Cogmind --------- Core Integrity 333/550 Matter 40/300 Energy 150/150 System Corruption 0% Temperature Cool (0) Movement Hovering (120) Ox1 Location -8/Materials Parts ------- > --- POWER (1) -------- Micro Nuclear Core > --- PROPULSION (3) --- Gravmag System > --- UTILITY (5) ------ Improved Heat Sink Advanced Weight Redist. System Advanced Signal Interpreter > --- WEAPON (2) ------- Precision Rocket Launcher Axe > --- INVENTORY (4) ---- Micro Nuclear Core Gravmag System Advanced Beam Cannon Datajack Peak State ------------ > --- POWER ------------ Micro Nuclear Core > --- PROPULSION ------- Gravmag System Gravmag System Gravmag System > --- UTILITY ---------- Improved Heat Sink Advanced Weight Redist. System Experimental Sensor Array Advanced Signal Interpreter Thief Drone Bay > --- WEAPON ----------- Precision Rocket Launcher Axe > --- INVENTORY -------- Micro Nuclear Core Gravmag System Advanced Beam Cannon Datajack [Rating: 48] Favorites ----------- Power Heavy Ion Engine Engine Heavy Ion Engine Power Core Light Nuclear Core Propulsion Aluminum Leg Leg Aluminum Leg Hover Unit Gravmag System Utility High-capacity Storage Unit Device Improved Heat Sink Storage High-capacity Storage Unit Processor Advanced Signal Interpreter Protection Light Armor Plating Weapon Autogun Energy Gun Small Laser Energy Cannon Advanced Beam Cannon Ballistic Gun Autogun Launcher Precision Rocket Launcher Special Weapon Mining Laser Slashing Weapon Mining Claw Build | -11 -10 -10 -9 -9 -8 ------- Run | Scr Mat Min Mat Sto Mat Slots Evolved 4 | . . . 2 . 2 Power . | . . . . . . Propulsion 1 | . . . . . 1 Utility 3 | . . . 2 . 1 Weapon . | . . . . . . Parts Attached 62 | . 14 1 7 17 23 Power 5 | . . . 1 2 2 Engine 3 | . . . . 2 1 Core 2 | . . . 1 . 1 Reactor . | . . . . . . Propulsion 16 | . 3 1 2 4 6 Treads . | . . . . . . Leg 13 | . 3 1 2 4 3 Wheel . | . . . . . . Hover 3 | . . . . . 3 Flight . | . . . . . . Utility 20 | . 6 . 3 3 8 Device 13 | . 2 . 2 3 6 Storage 4 | . 4 . . . . Processor 1 | . . . . . 1 Hackware . | . . . . . . Protection 2 | . . . 1 . 1 Artifact . | . . . . . . Weapon 21 | . 5 . 1 8 7 Energy Gun 4 | . 2 . . 1 1 Energy Cannon 6 | . . . . 3 3 Ballistic Gun 4 | . 2 . 1 1 . Ballistic Cannon . | . . . . . . Launcher 2 | . . . . 1 1 Special Weapon 1 | . 1 . . . . Impact Weapon . | . . . . . . Slashing Weapon 4 | . . . . 2 2 Piercing Weapon . | . . . . . . Special Melee Weapon . | . . . . . . Unidentified Prototypes 6 | . . . 2 4 . Parts Lost 11 | . 3 . . . 8 Power 1 | . . . . . 1 Propulsion 3 | . . . . . 3 Utility 2 | . . . . . 2 Weapon 5 | . 3 . . . 2 Highest Loss Streak 4 | . 2 . . . 4 Average Slot Usage (%) 98 | . 95 100 99 100 97 Engine 9 | . 14 14 1 10 4 Core 1 | . . . 9 . 4 Leg 23 | . 28 28 22 22 13 Hover 1 | . . . . . 12 Device 12 | . 8 . 18 16 23 Storage 21 | . 18 28 22 22 9 Processor 1 | . . . . . 8 Protection 2 | . . . 3 5 2 Energy Gun 1 | . 9 . . . . Energy Cannon 5 | . . . . 12 7 Ballistic Gun 13 | . 13 28 22 6 . Slashing Weapon 1 | . . . . 3 5 Naked Turns . | . . . . . . Heaviest Build 89 | 10 73 73 80 89 86 Greatest Support 39 | 20 20 20 20 20 39 Greatest Overweight (x) 4 | . 3 3 3 4 4 Average Overweight (x) 2 | . . 3 3 3 . Largest Inventory Capacity 20 | . 20 20 20 20 20 Average Capacity 17 | . 11 20 20 20 11 Most Carried 20 | . 18 20 20 20 20 Average Carried 17 | . 9 19 19 19 11 Final Capacity 20 | 6 20 20 20 20 4 Final Carried 20 | 6 18 20 20 20 4 Class Distribution -------------------- 83% | Hauler-Mutant 16% | Mutant Dominant Class ---------------- Mutant | -10/Materials Hauler-Mutant | -10/Mines Hauler-Mutant | -9/Materials Hauler-Mutant | -9/Storage Mutant | -8/Materials Resources | -11 -10 -10 -9 -9 -8 ----------- Run | Scr Mat Min Mat Sto Mat Matter Collected 1218 | 176 157 95 239 441 110 Remotely . | . . . . . . Salvage Created 1931 | . 276 91 305 791 468 Parts 123 | . 12 6 16 62 27 Haulers Intercepted 2 | . 1 . . 1 . Recyclers Shooed . | . . . . . . Parts Field Recycled . | . . . . . . Retrieved Matter . | . . . . . . Parts Self-Destructed . | . . . . . . Prevented . | . . . . . . Kills | -11 -10 -10 -9 -9 -8 ------- Run | Scr Mat Min Mat Sto Mat Combat Hostiles Destroyed 50 | . 5 2 6 20 17 Guns 27 | . 5 2 6 14 . Cannons 13 | . . . . 6 7 AOE 10 | . . . . . 10 Classes Destroyed 10 | . 2 . 3 2 3 Worker 3 | . . . . . 3 Builder 1 | . . . . . 1 Tunneler 1 | . . . . . 1 Hauler 2 | . 1 . . 1 . Recycler 2 | . . . 1 1 . Operator 1 | . . . . 1 . Watcher 2 | . . . . 2 . Swarmer 22 | . . . 2 10 10 Grunt 18 | . 5 2 2 4 5 Sentry 10 | . . . 2 6 2 Best Kill Streak 15 | . 2 2 3 4 15 Combat Bots Only 10 | . 2 2 1 3 10 Max Kills in Single Turn 6 | . 1 1 1 2 6 Gunslinging 1 | . . . . 1 . Exploded 2 | . . . . . 2 Melee . | . . . . . . Uniques/NPCs Destroyed . | . . . . . . Combat | -11 -10 -10 -9 -9 -8 -------- Run | Scr Mat Min Mat Sto Mat Damage Taken 2384 | . 315 126 274 552 1117 Core 371 | . 34 . 14 106 217 Absorbed by Shields . | . . . . . . Core Remaining (%) 85 | 100 . 86 . 70 . Volleys Fired 140 | . 28 7 26 46 33 Largest 2 | . 2 2 2 2 2 Hottest 136 | . 70 46 46 136 136 Shots Fired 240 | . 50 14 52 78 46 Gun 174 | . 50 14 52 58 . Cannon 54 | . . . . 20 34 Launcher 12 | . . . . . 12 Special . | . . . . . . Kinetic 149 | . 25 14 52 58 . Thermal 76 | . 22 . . 20 34 Explosive 12 | . . . . . 12 Electromagnetic 3 | . 3 . . . . Robot Hit Streak 23 | . 23 12 7 19 12 Robot Miss Streak 5 | . 2 1 5 2 3 Penetration Max . | . . . . . . Secondary Targets 3 | . 1 1 . 1 . Max Gunslinging Chain 1 | . 1 1 . 1 . Shots Hit Robots 169 | . 41 11 32 54 31 Core Hits 90 | . 18 3 11 31 27 Critical Hits 2 | . . . . . 2 Critical Kills . | . . . . . . Critical Parts Destroyed 2 | . . . . . 2 Melee Attacks 31 | . . . . 10 21 Impact . | . . . . . . Slashing 31 | . . . . 10 21 Piercing . | . . . . . . Sneak Attacks . | . . . . . . Combat Hostiles . | . . . . . . Follow-up Attacks . | . . . . . . Damage Inflicted 4083 | . 517 161 561 890 1954 Guns 1796 | . 427 161 561 647 . Cannons 713 | . . . . 243 470 Explosions 1574 | . 90 . . . 1484 Melee . | . . . . . . Ramming . | . . . . . . Kinetic 1552 | . 183 161 561 647 . Thermal 1005 | . 292 . . 243 470 Explosive 1484 | . . . . . 1484 Electromagnetic 42 | . 42 . . . . Impact . | . . . . . . Slashing . | . . . . . . Piercing . | . . . . . . Highest Corruption 1 | . 1 1 . . . Average Corruption 1 | . 1 1 . . . Corruption Purged . | . . . . . . Effects 6 | . . 6 . . . Message Errors 2 | . . 2 . . . Data Loss (minor) 4 | . . 4 . . . Overload Shots . | . . . . . . Overflow Damage 198 | . 7 . . 1 190 Projectiles 33 | . . . . 1 32 Explosions 165 | . 7 . . . 158 Melee . | . . . . . . Knockbacks . | . . . . . . Impact . | . . . . . . Kinetic . | . . . . . . Secondary . | . . . . . . Self-Inflicted Damage 275 | . 53 . . . 222 Shots 7 | . 1 . . . 6 Rammed . | . . . . . . Targets Rammed . | . . . . . . Kicked . | . . . . . . Crushed . | . . . . . . Highest Temperature 222 | . 131 34 20 135 222 Average Temperature 43 | . 34 15 9 22 111 Received Heat Transfer 630 | . 147 54 105 90 234 Siege Activations . | . . . . . . Robots Corrupted . | . . . . . . Combat Hostiles . | . . . . . . Parts Fried . | . . . . . . Impact Corruptions . | . . . . . . Robots Melted . | . . . . . . Combat Hostiles . | . . . . . . Parts Melted . | . . . . . . Heat Transferred 1952 | . 657 . . 444 851 Parts Sabotaged . | . . . . . . Parts Stolen . | . . . . . . Parts Stripped . | . . . . . . Power Chain Reactions 1 | . 1 . . . . Missiles Intercepted . | . . . . . . Alert | -11 -10 -10 -9 -9 -8 ------- Run | Scr Mat Min Mat Sto Mat Peak Influence 465 | . 152 146 212 313 465 Initial 79 | . . 14 22 24 79 Average 126 | . 54 33 94 200 196 Maximum Alert Level 2 | . . . 1 1 2 Low Security (%) 73 | . 100 100 92 50 40 Level 1 26 | . . . 7 49 58 Level 2 . | . . . . . 1 Level 3 . | . . . . . . Level 4 . | . . . . . . Level 5 . | . . . . . . High Security . | . . . . . . Max Security . | . . . . . . Squads Dispatched 8 | . . . 2 4 2 Investigation . | . . . . . . Extermination . | . . . . . . Reinforcement 5 | . . . 2 1 2 Assault . | . . . . . . Garrison 3 | . . . . 3 . Intercept . | . . . . . . Construction Impeded . | . . . . . . Haulers Reinforced . | . . . . . . Stealth | -11 -10 -10 -9 -9 -8 --------- Run | Scr Mat Min Mat Sto Mat Distress Signals 4 | . . . 1 2 1 Communications Jammed . | . . . . . . Distress Signals . | . . . . . . Times Spotted 84 | . 10 7 13 31 23 Peak Tracking Total 8 | . 2 3 4 5 8 Tactical Retreats 9 | . . 1 . 7 1 Traps | -11 -10 -10 -9 -9 -8 ------- Run | Scr Mat Min Mat Sto Mat Traps Triggered 4 | . 2 . . 1 1 Indirectly . | . . . . . . Trap Hack Attempts . | . . . . . . Triggered . | . . . . . . Disarmed . | . . . . . . Reprogrammed . | . . . . . . Reused . | . . . . . . Traps Extracted . | . . . . . . Installed . | . . . . . . Triggered 1 | . . 1 . . . Machines | -11 -10 -10 -9 -9 -8 ---------- Run | Scr Mat Min Mat Sto Mat Machines Disabled 8 | . . 1 . 4 3 Max in Single Turn 1 | . . . . 1 1 Machines Sabotaged . | . . . . . . Garrisons Compromised . | . . . . . . Overloaded Fab Kills . | . . . . . . Fab Network Shutdowns . | . . . . . . Hacking | -11 -10 -10 -9 -9 -8 --------- Run | Scr Mat Min Mat Sto Mat Machines Accessed 19 | . 4 1 4 8 2 Terminals 17 | . 4 . 4 8 1 Fabricators . | . . . . . . Repair Stations . | . . . . . . Recycling Units . | . . . . . . Scanalyzers 1 | . . . . . 1 Garrison Access . | . . . . . . Total Hacks 57 | . 15 1 18 14 9 Successful 41 | . 11 1 12 9 8 Failed 16 | . 4 . 6 5 1 Catastrophic 1 | . . . . . 1 Database Lockouts . | . . . . . . Manual 43 | . 15 . 16 6 6 Terminals 53 | . 15 . 18 14 6 Fabricators . | . . . . . . Repair Stations . | . . . . . . Recycling Units . | . . . . . . Scanalyzers 3 | . . . . . 3 Garrison Access . | . . . . . . Terminal Hacks 20 | . 5 1 5 5 4 Record 2 | . . . 2 . . Part Schematic 1 | . 1 . . . . Open Door 5 | . . 1 . 4 . Branch Access Points 1 | . . . . . 1 Emergency Access Points 2 | . 1 . . . 1 Locate Traps 4 | . 1 . 1 1 1 Zone Layout 5 | . 2 . 2 . 1 Fabricator Hacks . | . . . . . . Repair Station Hacks . | . . . . . . Recycling Unit Hacks . | . . . . . . Scanalyzer 3 | . . . . . 3 Insert Component 2 | . . . . . 2 Analyze 1 | . . . . . 1 Garrison Access Hacks . | . . . . . . Unauthorized Hacks 18 | . 6 . 7 4 1 Terminals 18 | . 6 . 7 4 1 Track 3 | . 2 . 1 . . Assimilate 1 | . . . 1 . . Botnet 12 | . 3 . 4 4 1 Operators 2 | . 1 . 1 . . Fabricators . | . . . . . . Repair Stations . | . . . . . . Recycling Units . | . . . . . . Scanalyzers . | . . . . . . Garrison Access . | . . . . . . Data Cores Recovered . | . . . . . . Used . | . . . . . . Hacking Detections 15 | . 4 . 4 6 1 Full Trace Events . | . . . . . . Feedback Events . | . . . . . . Feedback Blocked . | . . . . . . Robot Schematics Acquired . | . . . . . . Robots Built . | . . . . . . Matter . | . . . . . . Time . | . . . . . . Total Robot Build Rating . | . . . . . . Part Schematics Acquired 2 | . 1 . . . 1 Parts Built . | . . . . . . Matter . | . . . . . . Time . | . . . . . . Total Part Build Rating . | . . . . . . Parts Repaired . | . . . . . . Time . | . . . . . . Parts Recycled . | . . . . . . Recycled Matter . | . . . . . . Retrieved Matter . | . . . . . . Retrieved Components . | . . . . . . Parts Scanalyzed 1 | . . . . . 1 Part Schematics Acquired 1 | . . . . . 1 Parts Damaged . | . . . . . . Bothacking | -11 -10 -10 -9 -9 -8 ------------ Run | Scr Mat Min Mat Sto Mat Used RIF Installer . | . . . . . . Robots Hacked . | . . . . . . Non-combat . | . . . . . . Combat . | . . . . . . Robot Hacks Applied . | . . . . . . Relay Couplers Released . | . . . . . . Robots Rewired . | . . . . . . Allies Hacked . | . . . . . . Hacks Repelled . | . . . . . . Allies | -11 -10 -10 -9 -9 -8 -------- Run | Scr Mat Min Mat Sto Mat Total Allies 3 | . . 3 . . . Largest Group 3 | . . 3 2 . . Highest-Rated Group 40 | . . 40 24 . . Highest-Rated Ally 16 | . . 16 16 . . Total Orders 12 | . . . 6 6 . EXPLORE 7 | . . . 3 4 . RETURN 5 | . . . 3 2 . Ally Attacks 45 | . . 17 10 18 . Total Damage 304 | . . 142 86 76 . Kills 8 | . . 6 1 1 . Allies Corrupted . | . . . . . . Allies Melted . | . . . . . . Intel | -11 -10 -10 -9 -9 -8 ------- Run | Scr Mat Min Mat Sto Mat Robot Analysis Total . | . . . . . . Derelict Logs Recovered 1 | . . 1 . . . Drone Launches 16 | . . . 3 13 . Drone Recoveries 16 | . . . 3 13 . Exploration | -11 -10 -10 -9 -9 -8 ------------- Run | Scr Mat Min Mat Sto Mat Turns Passed 4457 | . 648 995 607 1678 529 Spaces Moved 2008 | 1 346 449 241 591 380 Core . | . . . . . . Treads . | . . . . . . Legs 1726 | 1 346 449 241 591 98 Wheels . | . . . . . . Hover 282 | . . . . . 282 Flight . | . . . . . . Fastest Speed 52 | 120 120 210 210 210 52 Average Speed 183 | 120 146 210 210 237 85 Slowest Speed 240 | 120 210 210 210 240 240 Overloaded Moves . | . . . . . . Propulsion Burnouts . | . . . . . . Robots Hopped . | . . . . . . Cave-ins Triggered . | . . . . . . Exploration Rate (%) 48 | 2 58 92 31 83 27 Regions Visited 5 Branch Regions 2 Pre-discovered Areas 1 | . . 1 . . . Known Exits Taken . | . . . . . . Unknown Exits Taken 5 | 1 1 1 1 1 . Scrap Searched 1 | . . 1 . . . Spaces Dug 30 | . . . . 2 28 Terrain Destroyed 166 | . 6 . . 2 158 Melee 18 | . . . . 2 16 Projectile . | . . . . . . AOE 148 | . 6 . . . 142 Terrain Rammed . | . . . . . . Walls Destroyed . | . . . . . . Machines Disabled . | . . . . . . Actions | -11 -10 -10 -9 -9 -8 --------- Run | Scr Mat Min Mat Sto Mat Total 2526 | . 444 492 306 782 502 Wait 170 | . 27 27 13 90 13 Move 2003 | . 345 448 240 590 380 Hop . | . . . . . . Pick Up 47 | . 20 5 8 8 6 Fast Attach 17 | . 2 . 2 4 9 Attach 17 | . 4 . 3 2 8 Detach 11 | . 1 . 2 5 3 Swap 28 | . 8 1 2 11 6 Drop 62 | . 9 4 10 16 23 Fire 140 | . 28 7 26 46 33 Melee 31 | . . . . 10 21 Ram . | . . . . . . Kick . | . . . . . . Crush . | . . . . . . Escape Stasis . | . . . . . . Rewire . | . . . . . . Trap . | . . . . . . Miscellaneous . | . . . . . . Route ------- -11/Scrapyard -10/Materials (discovered 4 exits: *Mat x2 / *Min x2) -10/Mines (discovered 2 exits: *Mat x2) -9/Materials -9/Storage -8/Materials History --------- Turn | Location | Event 1 | -11/Scrapyard | Discovered new exit (range 0) 1 | -11/Scrapyard | Entered Materials 1 | -10/Materials | Discovered new exit (range 15) 130 | -10/Materials | Discovered new exit (range 15) 296 | -10/Materials | Discovered new exit (range 10) 312 | -10/Materials | Build established: Mutant 432 | -10/Materials | Discovered new exit (range 16) 649 | -10/Materials | Entered Mines 650 | -10/Mines | Learned location of Storage (-9) 688 | -10/Mines | Found the Drone Emporium 698 | -10/Mines | Found Prototype Device 763 | -10/Mines | Build established: Hauler-Mutant 806 | -10/Mines | Discovered new exit (range 8) 1132 | -10/Mines | Learned Materials terminal intel 1296 | -10/Mines | Assisted by bots powering up and referring to "LRC-V3" 1323 | -10/Mines | Found a damaged Exp. Sensor Array with a note attached 1327 | -10/Mines | Found Prototype Device 1559 | -10/Mines | Discovered new exit (range 7) 1644 | -10/Mines | Entered Materials 1644 | -9/Materials | Accompanied by 2 allies 1644 | -9/Materials | Evolved 2 slots: Utility x2 1645 | -9/Materials | Loaded intel: 12 terminal locations 1663 | -9/Materials | Identified Exp. Sensor Array 1664 | -9/Materials | Identified Thief Drone Bay 2044 | -9/Materials | Discovered new exit (range 6) 2251 | -9/Materials | Entered Storage 2634 | -9/Storage | Garrison activated, responded to threat 3881 | -9/Storage | Discovered new exit (range 15) 3929 | -9/Storage | Entered Materials 3929 | -8/Materials | Evolved 2 slots: Propulsion x1, Utility x1 4095 | -8/Materials | Lost 4 parts (1p1n2w) 4458 | -8/Materials | Self-destructed Last Messages --------------- 04450_ Thief Drone Bay destroyed. 04452_ K-01 Serf destroyed. 04452_ T-07 Excavator destroyed. 04452_ Destroyed Flight Unit. 04452_ Destroyed Lgt. Ion Engine. 04452_ S-10 Pest destroyed. 04452_ K-01 Serf destroyed. 04452_ S-10 Pest destroyed. 04452_ K-01 Serf destroyed. 04453_ O-16 Technician uses terminal to summon reinforcements. 04453_ ALERT: Hostiles spotted, dispatching reinforcements to Terminal M007. 04453_ O-16 Technician locks terminal. 04453_ Gravmag System destroyed. 04455_ The unstable cave ceiling collapses. 04455_ Gravmag System destroyed. 04456_ Destroyed Lgt. Assault Rifle. 04456_ Destroyed Flight Unit. 04456_ S-10 Pest destroyed. 04458_ The unstable cave ceiling collapses. Map ----- +----------------------------------------------------+ | ?????????????????????????????? #???"###########" | | ?????????????????????????????? | | ?????????????????????????????? | | ????????????????????????????? ^""" ######### | | ???????????????????????????? ^"T" ## *]#?# | | ???????????????????????????? ^^ ## =!### | | ?????????????????????????????#^ ^ ##* !![! | | ?????????????????????????????# ##* =!!! | | ?????????????????????????????# ! ##==!![] | | ?????????????????????????????# ##==!]! | | ?????????????????????????????# ###### | | ?????????????????????????????# [ ######"## | | ?????????????????????????????# # #### # | | ?????????????????????????????# #?# %## ##### | | ?????????????? ??????#+######+###### [/= | | ?????????????? ?????# # # # ! | | ?????????????# ????# # """ !# # | | ?????????????? ???# # """"" # | | ??????????????? ??+ # """"" #% | | ????????????????# ?# # """"" += | | ????????????????# #"o # """ # %= | | ?????????????????# #T # / # | | ?????????????????# = " = [[ # | | ??????????????#### %= # [ !# | | ??????????????# ! ######### | | ??????????????# @ #? | | ??????????# #### ! #? | | ??????????# %= !! ##### = * #? | | ??????????? * !## ] = #? | | ??????????? % !?#k = % ##? | | ???????????? * !?# a= ######?? | | ???????????? !?# % *#?? | | ???????????? # !!#?###### # #?? | | ????????????? ## ####???## """ !#?? | | ?????????????###??# ????????# [ + """ #?? | | ??????????????????#?????????# # # """ #?? | | ????????????????????????????######### + #?? | | ????????????????????????????????????## #########?? | | ????????????????????????????????????? ?????????? | | ????????????????????????????????????# ?????????? | | ?????????????????????????????????????###?????????? | | ?????????????????????????????????????????????????? | | ?????????????????????????????????????????????????? | | ?????????????????????????????????????????????????? | | ?????????????????????????????????????????????????? | | ?????????????????????????????????????????????????? | | ?????????????????????????????????????????????????? | | ?????????????????????????????????????????????????? | | ?????????????????????????????????????????????????? | | ?????????????????????????????????????????????????? | +----------------------------------------------------+ Best States ------------- Heat Dissipation 45 Energy Generation 15 Energy Capacity 280 Matter Stores 300 Matter Capacity 300 Sight Range 16 Robot Scan Range 30 Terrain Scan Density 10 Additional Mass Support 6 Armor Coverage 150 Propulsion Shielding 33 Evasion (%) 54 Item Schematics ----------------- Hcp. Storage Unit | -10/Materials | Hacked Exp. Sensor Array | -8/Materials | Scanalyzed Robot Schematics ------------------ None Fabricated ------------ Nothing Alien Tech Used ----------------- None Achievements -------------- None Challenges ------------ None Game ------ Seed VisualAlphaDiverter Manual? 0 Play Time 00:54:41 Cumulative 19.6 hours Start 2020.10.02 @ 11:29:00 End 2020.10.03 @ 10:38:22 Sessions 7 Manual Loads 0 Difficulty Rogue Special Mode None Game No. 28 Rogue 28 Adventurer 0 Explorer 0 Win Type - Total 0 Types 0/0/0/0/0/0/0/0/0 Lore% 20 Gallery% 23 Achievement% 19 Wizard Run 0 Options --------- ASCII 0 Keyboard 1 Movement Numpad Keybinds 0 Fullscreen 1 Font 18/SmallcapsGlow Map View 76x50 Tactical HUD 1 Map Filters NONE Filters NONE Steam 1 RUN: f2dcb7ae-2669-470e-991d-a3866c388a8e